[Event "Titled Tuesday Blitz August 1 Early 2023"]
[White "Galchenko, Matvey"]
[Black "Li, Eric"]
[WhiteFideId "24175480"]
[BlackFideId "30939941"]
[WhiteElo "2893"]
[BlackElo "2381"]
[Result "1-0"]
[Round "3"]
[TimeControl "180+1"]
[Date "2023.08.01"]
[WhiteClock "0:00:06"]
[BlackClock "0:00:02"]
[Board "52"]

1. f4 {[%clk 0:03:00]}  d5 {[%clk 0:02:55]} 2. Nf3 {[%clk 0:03:00]}  Nf6 {[%clk 0:02:55]} 3. g3 {[%clk 0:03:00]}  c5 {[%clk 0:02:55]} 4. Bg2 {[%clk 0:03:01]}  Nc6 {[%clk 0:02:55]} 5. O-O {[%clk 0:03:02]}  g6 {[%clk 0:02:55]} 6. d3 {[%clk 0:03:03]}  Bg7 {[%clk 0:02:56]} 7. Nc3 {[%clk 0:03:04]}  O-O {[%clk 0:02:55]} 8. e4 {[%clk 0:03:04]}  dxe4 {[%clk 0:02:49]} 9. dxe4 {[%clk 0:03:05]}  e5 {[%clk 0:02:45]} 10. Qxd8 {[%clk 0:03:05]}  Rxd8 {[%clk 0:02:45]} 11. Nxe5 {[%clk 0:03:06]}  Nxe5 {[%clk 0:02:44]} 12. fxe5 {[%clk 0:03:06]}  Ng4 {[%clk 0:02:44]} 13. Bg5 {[%clk 0:03:07]}  Re8 {[%clk 0:02:43]} 14. Nd5 {[%clk 0:03:07]}  Bxe5 {[%clk 0:02:43]} 15. h3 {[%clk 0:03:08]}  f6 {[%clk 0:02:41]} 16. Bd2 {[%clk 0:02:48]}  Bd4+ {[%clk 0:02:31]} 17. Kh1 {[%clk 0:02:49]}  Nf2+ {[%clk 0:02:31]} 18. Rxf2 {[%clk 0:01:03]}  Bxf2 {[%clk 0:02:31]} 19. Nxf6+ {[%clk 0:01:03]}  Kf7 {[%clk 0:02:31]} 20. Nxe8 {[%clk 0:01:01]}  Kxe8 {[%clk 0:02:32]} 21. Kh2 {[%clk 0:01:01]}  Bd4 {[%clk 0:02:26]} 22. c3 {[%clk 0:00:58]}  Bg7 {[%clk 0:02:22]} 23. e5 {[%clk 0:00:57]}  Be6 {[%clk 0:02:18]} 24. b3 {[%clk 0:00:45]}  Rb8 {[%clk 0:02:12]} 25. Re1 {[%clk 0:00:40]}  b5 {[%clk 0:02:07]} 26. Bg5 {[%clk 0:00:34]}  Kd7 {[%clk 0:01:58]} 27. Rd1+ {[%clk 0:00:28]}  Ke8 {[%clk 0:01:51]} 28. Rd6 {[%clk 0:00:24]}  Rb6 {[%clk 0:01:37]} 29. Rd8+ {[%clk 0:00:20]}  Kf7 {[%clk 0:01:34]} 30. Be3 {[%clk 0:00:17]}  Bxe5 {[%clk 0:01:16]} 31. Bxc5 {[%clk 0:00:16]}  Ra6 {[%clk 0:01:13]} 32. Rf8+ {[%clk 0:00:17]}  Kg7 {[%clk 0:01:13]} 33. Rf2 {[%clk 0:00:17]}  Bxc3 {[%clk 0:01:10]} 34. Bb7 {[%clk 0:00:17]}  Ra5 {[%clk 0:01:07]} 35. Re2 {[%clk 0:00:17]}  Kf7 {[%clk 0:00:56]} 36. Rf2+ {[%clk 0:00:15]}  Kg7 {[%clk 0:00:50]} 37. Bf8+ {[%clk 0:00:15]}  Kg8 {[%clk 0:00:44]} 38. Bh6 {[%clk 0:00:14]}  Bg7 {[%clk 0:00:43]} 39. Be3 {[%clk 0:00:10]}  b4 {[%clk 0:00:36]} 40. Bc6 {[%clk 0:00:10]}  a6 {[%clk 0:00:27]} 41. Rd2 {[%clk 0:00:07]}  Rf5 {[%clk 0:00:21]} 42. Kg2 {[%clk 0:00:03]}  Rf8 {[%clk 0:00:19]} 43. Bf3 {[%clk 0:00:03]}  Be5 {[%clk 0:00:15]} 44. Be2 {[%clk 0:00:03]}  Bc8 {[%clk 0:00:10]} 45. Bc4+ {[%clk 0:00:03]}  Kg7 {[%clk 0:00:10]} 46. Bc5 {[%clk 0:00:03]}  Bb7+ {[%clk 0:00:04]} 47. Kh2 {[%clk 0:00:03]}  Rc8 {[%clk 0:00:03]} 48. Rd7+ {[%clk 0:00:01]}  Kh6 {[%clk 0:00:03]} 49. Be3+ {[%clk 0:00:01]}  g5 {[%clk 0:00:02]} 50. Rxb7 {[%clk 0:00:02]}  Bc3 {[%clk 0:00:01]} 51. Rb6+ {[%clk 0:00:02]}  Kg7 {[%clk 0:00:01]} 52. Rb7+ {[%clk 0:00:03]}  Kh6 {[%clk 0:00:02]} 53. Kg2 {[%clk 0:00:03]}  Re8 {[%clk 0:00:01]} 54. Kf3 {[%clk 0:00:04]}  Rf8+ {[%clk 0:00:01]} 55. Ke2 {[%clk 0:00:05]}  Re8 {[%clk 0:00:02]} 56. Bd3 {[%clk 0:00:05]}  Bd4 {[%clk 0:00:02]} 57. Rxh7# {[%clk 0:00:06]} 1-0


[Site "https://www.chess.com"]

[Event "Titled Tuesday Blitz August 1 Early 2023"]
[White "Sadykov, Ramil"]
[Black "Rustemov, Alexander"]
[WhiteFideId "24113590"]
[BlackFideId "4119002"]
[WhiteElo "2566"]
[BlackElo "2838"]
[Result "1/2-1/2"]
[Round "3"]
[TimeControl "180+1"]
[Date "2023.08.01"]
[WhiteClock "0:00:47"]
[BlackClock "0:01:05"]
[Board "54"]

1. e4 {[%clk 0:03:00]}  e6 {[%clk 0:03:00]} 2. d4 {[%clk 0:02:55]}  d5 {[%clk 0:03:00]} 3. exd5 {[%clk 0:02:50]}  exd5 {[%clk 0:02:59]} 4. Bd3 {[%clk 0:02:51]}  Nc6 {[%clk 0:02:58]} 5. c3 {[%clk 0:02:49]}  Bd6 {[%clk 0:02:59]} 6. Qf3 {[%clk 0:02:47]}  Nge7 {[%clk 0:02:49]} 7. Ne2 {[%clk 0:02:43]}  Be6 {[%clk 0:02:49]} 8. Bf4 {[%clk 0:02:40]}  Qd7 {[%clk 0:02:49]} 9. Bxd6 {[%clk 0:02:25]}  Qxd6 {[%clk 0:02:50]} 10. Qg3 {[%clk 0:02:19]}  Qxg3 {[%clk 0:02:48]} 11. hxg3 {[%clk 0:02:12]}  Bf5 {[%clk 0:02:45]} 12. Bxf5 {[%clk 0:02:04]}  Nxf5 {[%clk 0:02:46]} 13. Nf4 {[%clk 0:02:02]}  O-O-O {[%clk 0:02:46]} 14. Nd2 {[%clk 0:01:50]}  Rhe8+ {[%clk 0:02:42]} 15. Kf1 {[%clk 0:01:44]}  h6 {[%clk 0:02:41]} 16. g4 {[%clk 0:01:39]}  Nfe7 {[%clk 0:02:32]} 17. Nh5 {[%clk 0:01:34]}  Rg8 {[%clk 0:02:28]} 18. Re1 {[%clk 0:01:30]}  Ng6 {[%clk 0:02:18]} 19. f4 {[%clk 0:01:26]}  f6 {[%clk 0:02:09]} 20. Kf2 {[%clk 0:01:22]}  Nh8 {[%clk 0:02:05]} 21. f5 {[%clk 0:01:16]}  Nf7 {[%clk 0:02:05]} 22. Nf4 {[%clk 0:01:05]}  Ng5 {[%clk 0:02:02]} 23. Ne6 {[%clk 0:00:59]}  Nxe6 {[%clk 0:01:54]} 24. Rxe6 {[%clk 0:00:58]}  Rge8 {[%clk 0:01:53]} 25. Rhe1 {[%clk 0:00:55]}  Rxe6 {[%clk 0:01:53]} 26. Rxe6 {[%clk 0:00:55]}  Kd7 {[%clk 0:01:46]} 27. Ke3 {[%clk 0:00:52]}  Re8 {[%clk 0:01:35]} 28. Rxe8 {[%clk 0:00:51]}  Kxe8 {[%clk 0:01:36]} 29. Nb3 {[%clk 0:00:48]}  b6 {[%clk 0:01:05]} 30. Nc1 {[%clk 0:00:47]} 1/2-1/2


[Site "https://www.chess.com"]

[Event "Titled Tuesday Blitz August 1 Early 2023"]
[White "Nazari, Arad"]
[Black "Pastar, Slaven"]
[WhiteFideId "12577324"]
[BlackFideId "14402718"]
[WhiteElo "2798"]
[BlackElo "2559"]
[Result "0-1"]
[Round "3"]
[TimeControl "180+1"]
[Date "2023.08.01"]
[WhiteClock "0:00:06"]
[BlackClock "0:00:39"]
[Board "56"]

1. e4 {[%clk 0:02:54]}  b6 {[%clk 0:03:00]} 2. d4 {[%clk 0:02:54]}  Bb7 {[%clk 0:03:00]} 3. Nc3 {[%clk 0:02:54]}  e6 {[%clk 0:03:00]} 4. f4 {[%clk 0:02:55]}  Nf6 {[%clk 0:03:00]} 5. Nf3 {[%clk 0:02:55]}  Nxe4 {[%clk 0:02:59]} 6. Bd3 {[%clk 0:02:54]}  Bb4 {[%clk 0:02:56]} 7. Bd2 {[%clk 0:02:52]}  Nxd2 {[%clk 0:02:54]} 8. Qxd2 {[%clk 0:02:52]}  Bxf3 {[%clk 0:02:51]} 9. gxf3 {[%clk 0:02:52]}  Qh4+ {[%clk 0:02:51]} 10. Ke2 {[%clk 0:02:52]}  Nc6 {[%clk 0:02:48]} 11. Be4 {[%clk 0:02:14]}  d5 {[%clk 0:02:45]} 12. Bd3 {[%clk 0:01:52]}  Nxd4+ {[%clk 0:02:43]} 13. Kd1 {[%clk 0:01:52]}  c5 {[%clk 0:02:16]} 14. a3 {[%clk 0:01:26]}  Bxc3 {[%clk 0:02:14]} 15. bxc3 {[%clk 0:01:23]}  Nc6 {[%clk 0:01:54]} 16. Bb5 {[%clk 0:01:09]}  Rc8 {[%clk 0:01:54]} 17. f5 {[%clk 0:01:03]}  O-O {[%clk 0:01:41]} 18. fxe6 {[%clk 0:01:04]}  fxe6 {[%clk 0:01:41]} 19. Re1 {[%clk 0:01:04]}  Rf6 {[%clk 0:01:30]} 20. Kc1 {[%clk 0:00:59]}  a6 {[%clk 0:01:00]} 21. Bxa6 {[%clk 0:00:53]}  Rcf8 {[%clk 0:00:59]} 22. Bb5 {[%clk 0:00:45]}  Na5 {[%clk 0:00:57]} 23. Kb2 {[%clk 0:00:41]}  Nc4+ {[%clk 0:00:56]} 24. Bxc4 {[%clk 0:00:40]}  Qxc4 {[%clk 0:00:56]} 25. a4 {[%clk 0:00:28]}  Rxf3 {[%clk 0:00:47]} 26. Rxe6 {[%clk 0:00:28]}  d4 {[%clk 0:00:48]} 27. Qe2 {[%clk 0:00:20]}  Qxc3+ {[%clk 0:00:41]} 28. Ka2 {[%clk 0:00:06]}  Rf2 {[%clk 0:00:39]} 0-1


[Site "https://www.chess.com"]

[Event "Titled Tuesday Blitz August 1 Early 2023"]
[White "Postlmayer, Jakob"]
[Black "Bauman_Guy"]
[WhiteFideId "1643622"]
[WhiteElo "2551"]
[BlackElo "2790"]
[Result "1/2-1/2"]
[Round "3"]
[TimeControl "180+1"]
[Date "2023.08.01"]
[WhiteClock "0:00:04"]
[BlackClock "0:00:08"]
[Board "57"]

1. e4 {[%clk 0:03:00]}  c5 {[%clk 0:02:58]} 2. Nf3 {[%clk 0:03:00]}  d6 {[%clk 0:02:59]} 3. Bb5+ {[%clk 0:02:59]}  Nd7 {[%clk 0:02:58]} 4. O-O {[%clk 0:02:58]}  a6 {[%clk 0:02:59]} 5. Bd3 {[%clk 0:02:59]}  g6 {[%clk 0:02:58]} 6. c3 {[%clk 0:02:58]}  Bg7 {[%clk 0:02:59]} 7. Re1 {[%clk 0:02:58]}  Ngf6 {[%clk 0:02:59]} 8. Bc2 {[%clk 0:02:58]}  O-O {[%clk 0:02:59]} 9. d4 {[%clk 0:02:59]}  e5 {[%clk 0:02:59]} 10. Nbd2 {[%clk 0:02:51]}  b5 {[%clk 0:02:56]} 11. a4 {[%clk 0:02:50]}  Bb7 {[%clk 0:02:56]} 12. d5 {[%clk 0:02:46]}  c4 {[%clk 0:02:52]} 13. b3 {[%clk 0:02:44]}  cxb3 {[%clk 0:02:49]} 14. Nxb3 {[%clk 0:02:45]}  Qc7 {[%clk 0:02:49]} 15. Bb2 {[%clk 0:02:37]}  Nb6 {[%clk 0:02:48]} 16. Nbd2 {[%clk 0:02:26]}  Nfd7 {[%clk 0:02:46]} 17. Qe2 {[%clk 0:02:21]}  Nxa4 {[%clk 0:02:35]} 18. Bxa4 {[%clk 0:02:21]}  bxa4 {[%clk 0:02:35]} 19. Rxa4 {[%clk 0:02:20]}  Nc5 {[%clk 0:02:36]} 20. Ra2 {[%clk 0:02:19]}  f5 {[%clk 0:02:29]} 21. c4 {[%clk 0:02:19]}  Rfc8 {[%clk 0:02:26]} 22. Rc1 {[%clk 0:02:12]}  a5 {[%clk 0:02:24]} 23. Rc2 {[%clk 0:02:06]}  Ba6 {[%clk 0:02:20]} 24. Ba3 {[%clk 0:01:38]}  Bh6 {[%clk 0:01:51]} 25. h4 {[%clk 0:01:33]}  Rab8 {[%clk 0:01:16]} 26. Bxc5 {[%clk 0:01:07]}  Qxc5 {[%clk 0:01:15]} 27. Ng5 {[%clk 0:01:05]}  Bxg5 {[%clk 0:01:08]} 28. hxg5 {[%clk 0:01:06]}  f4 {[%clk 0:01:06]} 29. Qg4 {[%clk 0:01:00]}  Re8 {[%clk 0:01:04]} 30. Qd7 {[%clk 0:00:45]}  Rbd8 {[%clk 0:00:28]} 31. Qa4 {[%clk 0:00:36]}  Bc8 {[%clk 0:00:28]} 32. Qxa5 {[%clk 0:00:28]}  Qd4 {[%clk 0:00:28]} 33. Qc3 {[%clk 0:00:27]}  Qc5 {[%clk 0:00:27]} 34. Nb3 {[%clk 0:00:27]}  Qc7 {[%clk 0:00:27]} 35. c5 {[%clk 0:00:27]}  dxc5 {[%clk 0:00:26]} 36. Qxc5 {[%clk 0:00:27]}  Qb8 {[%clk 0:00:25]} 37. Na5 {[%clk 0:00:21]}  Qb1+ {[%clk 0:00:25]} 38. Kh2 {[%clk 0:00:21]}  f3 {[%clk 0:00:23]} 39. Rab2 {[%clk 0:00:08]}  Qf1 {[%clk 0:00:23]} 40. gxf3 {[%clk 0:00:08]}  Rf8 {[%clk 0:00:21]} 41. Rc1 {[%clk 0:00:06]}  Qh3+ {[%clk 0:00:20]} 42. Kg1 {[%clk 0:00:07]}  Rxf3 {[%clk 0:00:18]} 43. Nc6 {[%clk 0:00:06]}  Rdf8 {[%clk 0:00:13]} 44. Ne7+ {[%clk 0:00:06]}  Kh8 {[%clk 0:00:14]} 45. Qxc8 {[%clk 0:00:05]}  Rxc8 {[%clk 0:00:12]} 46. Rxc8+ {[%clk 0:00:06]}  Kg7 {[%clk 0:00:12]} 47. Rb7 {[%clk 0:00:06]}  Rg3+ {[%clk 0:00:05]} 48. fxg3 {[%clk 0:00:05]}  Qxg3+ {[%clk 0:00:06]} 49. Kf1 {[%clk 0:00:06]}  Qf3+ {[%clk 0:00:07]} 50. Kg1 {[%clk 0:00:05]}  Qg3+ {[%clk 0:00:07]} 51. Kf1 {[%clk 0:00:05]}  Qf3+ {[%clk 0:00:07]} 52. Kg1 {[%clk 0:00:04]}  Qg3+ {[%clk 0:00:08]} 1/2-1/2


[Site "https://www.chess.com"]

[Event "Titled Tuesday Blitz August 1 Early 2023"]
[White "Aradhya, Garg"]
[Black "Golubev, Mikhail"]
[WhiteFideId "25006746"]
[BlackFideId "14100983"]
[WhiteElo "2755"]
[BlackElo "2546"]
[Result "1-0"]
[Round "3"]
[TimeControl "180+1"]
[Date "2023.08.01"]
[WhiteClock "0:01:06"]
[BlackClock "0:00:10"]
[Board "59"]

1. d4 {[%clk 0:03:00]}  Nf6 {[%clk 0:02:59]} 2. c4 {[%clk 0:03:01]}  g6 {[%clk 0:02:59]} 3. g3 {[%clk 0:03:01]}  Bg7 {[%clk 0:02:59]} 4. Bg2 {[%clk 0:03:01]}  O-O {[%clk 0:02:58]} 5. Nc3 {[%clk 0:03:02]}  d6 {[%clk 0:02:56]} 6. Nf3 {[%clk 0:03:01]}  c6 {[%clk 0:02:53]} 7. e4 {[%clk 0:03:00]}  Nbd7 {[%clk 0:02:46]} 8. O-O {[%clk 0:02:59]}  e5 {[%clk 0:02:46]} 9. h3 {[%clk 0:02:58]}  exd4 {[%clk 0:02:41]} 10. Nxd4 {[%clk 0:02:59]}  Qb6 {[%clk 0:02:41]} 11. Re1 {[%clk 0:02:57]}  Re8 {[%clk 0:02:40]} 12. Nb3 {[%clk 0:02:54]}  Ne5 {[%clk 0:02:23]} 13. Qxd6 {[%clk 0:02:51]}  Nxc4 {[%clk 0:02:11]} 14. Qc5 {[%clk 0:02:51]}  Qxc5 {[%clk 0:01:43]} 15. Nxc5 {[%clk 0:02:51]}  Nd7 {[%clk 0:01:43]} 16. Nd3 {[%clk 0:02:34]}  Nde5 {[%clk 0:01:25]} 17. Nxe5 {[%clk 0:02:34]}  Nxe5 {[%clk 0:01:19]} 18. Rd1 {[%clk 0:02:32]}  Be6 {[%clk 0:01:17]} 19. f4 {[%clk 0:02:17]}  Nc4 {[%clk 0:01:06]} 20. e5 {[%clk 0:02:18]}  Rad8 {[%clk 0:00:52]} 21. b3 {[%clk 0:02:07]}  Rxd1+ {[%clk 0:00:38]} 22. Nxd1 {[%clk 0:02:08]}  Rd8 {[%clk 0:00:38]} 23. Ne3 {[%clk 0:02:07]}  Nxe3 {[%clk 0:00:35]} 24. Bxe3 {[%clk 0:02:07]}  f6 {[%clk 0:00:33]} 25. Bxa7 {[%clk 0:01:38]}  fxe5 {[%clk 0:00:32]} 26. fxe5 {[%clk 0:01:39]}  Bd5 {[%clk 0:00:28]} 27. Re1 {[%clk 0:01:35]}  Bxg2 {[%clk 0:00:27]} 28. Kxg2 {[%clk 0:01:36]}  Rd2+ {[%clk 0:00:27]} 29. Kf3 {[%clk 0:01:27]}  Rxa2 {[%clk 0:00:27]} 30. e6 {[%clk 0:01:27]}  Kf8 {[%clk 0:00:26]} 31. Bc5+ {[%clk 0:01:09]}  Ke8 {[%clk 0:00:26]} 32. Rd1 {[%clk 0:01:09]}  Bf8 {[%clk 0:00:16]} 33. e7 {[%clk 0:01:05]}  Bxe7 {[%clk 0:00:13]} 34. Re1 {[%clk 0:01:05]}  Rb2 {[%clk 0:00:13]} 35. Rxe7+ {[%clk 0:01:05]}  Kd8 {[%clk 0:00:10]} 36. Rxb7 {[%clk 0:01:06]} 1-0


[Site "https://www.chess.com"]

[Event "Titled Tuesday Blitz August 1 Early 2023"]
[White "ATM622"]
[Black "djokovic74"]
[WhiteElo "2543"]
[BlackElo "2755"]
[Result "0-1"]
[Round "3"]
[TimeControl "180+1"]
[Date "2023.08.01"]
[WhiteClock "0:01:43"]
[BlackClock "0:02:22"]
[Board "60"]

1. d4 {[%clk 0:03:00]}  e6 {[%clk 0:02:59]} 2. c4 {[%clk 0:02:57]}  Nf6 {[%clk 0:02:59]} 3. g3 {[%clk 0:02:58]}  d5 {[%clk 0:02:59]} 4. Bg2 {[%clk 0:02:58]}  Be7 {[%clk 0:03:00]} 5. Nf3 {[%clk 0:02:58]}  O-O {[%clk 0:03:01]} 6. O-O {[%clk 0:02:58]}  c6 {[%clk 0:03:02]} 7. Nc3 {[%clk 0:02:57]}  b6 {[%clk 0:03:01]} 8. Qd3 {[%clk 0:02:50]}  Ba6 {[%clk 0:02:58]} 9. Nd2 {[%clk 0:02:50]}  Nbd7 {[%clk 0:02:59]} 10. e4 {[%clk 0:02:48]}  dxc4 {[%clk 0:02:59]} 11. Nxc4 {[%clk 0:02:47]}  Ne5 {[%clk 0:02:54]} 12. Nxe5 {[%clk 0:02:23]}  Bxd3 {[%clk 0:02:53]} 13. Nxd3 {[%clk 0:02:24]}  Qxd4 {[%clk 0:02:53]} 14. Rd1 {[%clk 0:02:24]}  Qd7 {[%clk 0:02:46]} 15. Bf4 {[%clk 0:02:20]}  Qb7 {[%clk 0:02:41]} 16. Rac1 {[%clk 0:02:09]}  Rfd8 {[%clk 0:02:40]} 17. Ne5 {[%clk 0:02:08]}  Rxd1+ {[%clk 0:02:40]} 18. Rxd1 {[%clk 0:02:09]}  Rd8 {[%clk 0:02:40]} 19. Rxd8+ {[%clk 0:02:08]}  Bxd8 {[%clk 0:02:40]} 20. Nc4 {[%clk 0:02:09]}  Bc7 {[%clk 0:02:35]} 21. Nd6 {[%clk 0:02:07]}  Bxd6 {[%clk 0:02:35]} 22. Bxd6 {[%clk 0:02:08]}  Qd7 {[%clk 0:02:35]} 23. e5 {[%clk 0:02:07]}  Ne8 {[%clk 0:02:35]} 24. Ne4 {[%clk 0:02:07]}  f5 {[%clk 0:02:25]} 25. exf6 {[%clk 0:01:47]}  Nxd6 {[%clk 0:02:22]} 26. fxg7 {[%clk 0:01:43]}  Nxe4 {[%clk 0:02:22]} 0-1


[Site "https://www.chess.com"]

[Event "Titled Tuesday Blitz August 1 Early 2023"]
[White "Fantastic_Power"]
[Black "Chor, Kevin"]
[BlackFideId "2090740"]
[WhiteElo "2753"]
[BlackElo "2540"]
[Result "0-1"]
[Round "3"]
[TimeControl "180+1"]
[Date "2023.08.01"]
[WhiteClock "0:00:08"]
[BlackClock "0:00:10"]
[Board "61"]

1. e4 {[%clk 0:03:00]}  c5 {[%clk 0:02:58]} 2. Nf3 {[%clk 0:03:00]}  Nc6 {[%clk 0:02:52]} 3. d4 {[%clk 0:03:00]}  cxd4 {[%clk 0:02:45]} 4. Nxd4 {[%clk 0:03:01]}  g6 {[%clk 0:02:42]} 5. c4 {[%clk 0:02:57]}  Bg7 {[%clk 0:02:42]} 6. Be3 {[%clk 0:02:57]}  Nf6 {[%clk 0:02:42]} 7. Nc3 {[%clk 0:02:56]}  O-O {[%clk 0:02:39]} 8. Be2 {[%clk 0:02:53]}  d6 {[%clk 0:02:39]} 9. f3 {[%clk 0:02:51]}  Bd7 {[%clk 0:02:39]} 10. O-O {[%clk 0:02:51]}  Nxd4 {[%clk 0:02:40]} 11. Bxd4 {[%clk 0:02:50]}  a5 {[%clk 0:02:41]} 12. Qd2 {[%clk 0:02:45]}  Bc6 {[%clk 0:02:40]} 13. Rab1 {[%clk 0:02:42]}  Nd7 {[%clk 0:02:36]} 14. Be3 {[%clk 0:02:42]}  Nc5 {[%clk 0:02:34]} 15. b3 {[%clk 0:02:39]}  e6 {[%clk 0:02:32]} 16. Rfd1 {[%clk 0:02:37]}  Be5 {[%clk 0:02:31]} 17. Nb5 {[%clk 0:02:05]}  Qh4 {[%clk 0:01:14]} 18. g3 {[%clk 0:01:41]}  Bxg3 {[%clk 0:01:14]} 19. hxg3 {[%clk 0:01:42]}  Qxg3+ {[%clk 0:01:15]} 20. Kf1 {[%clk 0:01:42]}  Qh3+ {[%clk 0:01:14]} 21. Ke1 {[%clk 0:01:41]}  Qh4+ {[%clk 0:00:54]} 22. Bf2 {[%clk 0:01:40]}  Qh1+ {[%clk 0:00:54]} 23. Bf1 {[%clk 0:01:40]}  Qxf3 {[%clk 0:00:54]} 24. Qe3 {[%clk 0:01:19]}  Bxe4 {[%clk 0:00:46]} 25. Qxf3 {[%clk 0:01:14]}  Bxf3 {[%clk 0:00:46]} 26. Rxd6 {[%clk 0:01:14]}  Ne4 {[%clk 0:00:47]} 27. Rd3 {[%clk 0:01:02]}  Bg4 {[%clk 0:00:42]} 28. Bb6 {[%clk 0:00:50]}  e5 {[%clk 0:00:21]} 29. Nd6 {[%clk 0:00:46]}  Ng5 {[%clk 0:00:18]} 30. Bg2 {[%clk 0:00:43]}  e4 {[%clk 0:00:16]} 31. Rd5 {[%clk 0:00:23]}  f5 {[%clk 0:00:12]} 32. c5 {[%clk 0:00:15]}  Nf3+ {[%clk 0:00:11]} 33. Bxf3 {[%clk 0:00:14]}  Bxf3 {[%clk 0:00:12]} 34. Kf2 {[%clk 0:00:13]}  f4 {[%clk 0:00:10]} 35. Nxb7 {[%clk 0:00:12]}  Rae8 {[%clk 0:00:10]} 36. Rd7 {[%clk 0:00:11]}  Bg4 {[%clk 0:00:09]} 37. Rd4 {[%clk 0:00:06]}  e3+ {[%clk 0:00:09]} 38. Kg1 {[%clk 0:00:07]}  Be2 {[%clk 0:00:06]} 39. Nd6 {[%clk 0:00:06]}  Re6 {[%clk 0:00:04]} 40. Re4 {[%clk 0:00:06]}  Ref6 {[%clk 0:00:04]} 41. Re1 {[%clk 0:00:04]}  Bd3 {[%clk 0:00:04]} 42. Re5 {[%clk 0:00:03]}  f3 {[%clk 0:00:05]} 43. Kh2 {[%clk 0:00:02]}  f2 {[%clk 0:00:05]} 44. R5xe3 {[%clk 0:00:03]}  fxe1=Q {[%clk 0:00:04]} 45. Rxe1 {[%clk 0:00:04]}  Rf2+ {[%clk 0:00:04]} 46. Kg1 {[%clk 0:00:04]}  Rf1+ {[%clk 0:00:04]} 47. Rxf1 {[%clk 0:00:04]}  Rxf1+ {[%clk 0:00:05]} 48. Kg2 {[%clk 0:00:05]}  Rc1 {[%clk 0:00:06]} 49. Nc8 {[%clk 0:00:03]}  Rc2+ {[%clk 0:00:06]} 50. Kg3 {[%clk 0:00:03]}  Bf5 {[%clk 0:00:06]} 51. Ne7+ {[%clk 0:00:02]}  Kf7 {[%clk 0:00:06]} 52. Nc6 {[%clk 0:00:03]}  Rxa2 {[%clk 0:00:06]} 53. Nxa5 {[%clk 0:00:03]}  Rc2 {[%clk 0:00:06]} 54. b4 {[%clk 0:00:03]}  h5 {[%clk 0:00:06]} 55. c6 {[%clk 0:00:03]}  g5 {[%clk 0:00:07]} 56. c7 {[%clk 0:00:03]}  h4+ {[%clk 0:00:07]} 57. Kf3 {[%clk 0:00:04]}  Kf6 {[%clk 0:00:08]} 58. Nb7 {[%clk 0:00:03]}  Ke5 {[%clk 0:00:08]} 59. Bc5 {[%clk 0:00:02]}  g4+ {[%clk 0:00:08]} 60. Ke3 {[%clk 0:00:02]}  h3 {[%clk 0:00:09]} 61. Nd6 {[%clk 0:00:01]}  Be6 {[%clk 0:00:09]} 62. Ne4 {[%clk 0:00:01]}  h2 {[%clk 0:00:08]} 63. Bd4+ {[%clk 0:00:01]}  Kd5 {[%clk 0:00:08]} 64. Ng3 {[%clk 0:00:01]}  Rc1 {[%clk 0:00:08]} 65. Bc5 {[%clk 0:00:01]}  h1=Q {[%clk 0:00:07]} 66. Nxh1 {[%clk 0:00:01]}  Rxh1 {[%clk 0:00:08]} 67. Kf4 {[%clk 0:00:02]}  Rf1+ {[%clk 0:00:07]} 68. Kg3 {[%clk 0:00:03]}  Rf3+ {[%clk 0:00:07]} 69. Kg2 {[%clk 0:00:03]}  Rf7 {[%clk 0:00:07]} 70. Bb6 {[%clk 0:00:03]}  Kc6 {[%clk 0:00:07]} 71. Ba5 {[%clk 0:00:03]}  Rxc7 {[%clk 0:00:07]} 72. Bxc7 {[%clk 0:00:04]}  Kxc7 {[%clk 0:00:08]} 73. Kg3 {[%clk 0:00:05]}  Kc6 {[%clk 0:00:09]} 74. Kf4 {[%clk 0:00:06]}  Kb5 {[%clk 0:00:09]} 75. Kg3 {[%clk 0:00:07]}  Kxb4 {[%clk 0:00:10]} 76. Kf4 {[%clk 0:00:08]} 0-1


[Site "https://www.chess.com"]

[Event "Titled Tuesday Blitz August 1 Early 2023"]
[White "Yanchenko, Roman"]
[Black "Jaskolka, Tomasz"]
[WhiteFideId "4137329"]
[BlackFideId "1170791"]
[WhiteElo "2724"]
[BlackElo "2525"]
[Result "1-0"]
[Round "3"]
[TimeControl "180+1"]
[Date "2023.08.01"]
[WhiteClock "0:00:17"]
[BlackClock "0:00:01"]
[Board "64"]

1. d4 {[%clk 0:03:00]}  d5 {[%clk 0:02:59]} 2. Nf3 {[%clk 0:03:01]}  Nc6 {[%clk 0:02:58]} 3. c4 {[%clk 0:03:01]}  e5 {[%clk 0:02:58]} 4. dxe5 {[%clk 0:02:55]}  d4 {[%clk 0:02:59]} 5. a3 {[%clk 0:02:55]}  a5 {[%clk 0:02:59]} 6. Bf4 {[%clk 0:02:55]}  Nge7 {[%clk 0:02:47]} 7. Nbd2 {[%clk 0:02:55]}  Ng6 {[%clk 0:02:47]} 8. g3 {[%clk 0:02:55]}  Nxf4 {[%clk 0:02:38]} 9. gxf4 {[%clk 0:02:56]}  f6 {[%clk 0:02:38]} 10. Bg2 {[%clk 0:02:27]}  fxe5 {[%clk 0:02:38]} 11. Nxe5 {[%clk 0:02:27]}  Nxe5 {[%clk 0:02:38]} 12. fxe5 {[%clk 0:02:28]}  Qg5 {[%clk 0:02:35]} 13. Bd5 {[%clk 0:02:28]}  c6 {[%clk 0:02:20]} 14. Nf3 {[%clk 0:02:20]}  Qf4 {[%clk 0:02:12]} 15. Qxd4 {[%clk 0:02:20]}  Qxd4 {[%clk 0:02:12]} 16. Nxd4 {[%clk 0:02:21]}  cxd5 {[%clk 0:02:12]} 17. cxd5 {[%clk 0:02:22]}  Bc5 {[%clk 0:02:08]} 18. Nb5 {[%clk 0:02:18]}  O-O {[%clk 0:02:05]} 19. e3 {[%clk 0:02:07]}  Bd7 {[%clk 0:01:10]} 20. Nc3 {[%clk 0:02:05]}  Bg4 {[%clk 0:00:58]} 21. Rg1 {[%clk 0:02:01]}  h5 {[%clk 0:00:53]} 22. Rg3 {[%clk 0:01:34]}  Rae8 {[%clk 0:00:33]} 23. f4 {[%clk 0:01:31]}  Kh7 {[%clk 0:00:26]} 24. Ne4 {[%clk 0:01:26]}  Be7 {[%clk 0:00:26]} 25. d6 {[%clk 0:01:25]}  Bh4 {[%clk 0:00:27]} 26. Kd2 {[%clk 0:01:21]}  Bxg3 {[%clk 0:00:27]} 27. hxg3 {[%clk 0:01:21]}  Rc8 {[%clk 0:00:20]} 28. b4 {[%clk 0:01:18]}  Kg6 {[%clk 0:00:20]} 29. Nc3 {[%clk 0:01:04]}  axb4 {[%clk 0:00:16]} 30. axb4 {[%clk 0:01:04]}  Rc4 {[%clk 0:00:16]} 31. Nd5 {[%clk 0:00:45]}  Be6 {[%clk 0:00:16]} 32. Nc7 {[%clk 0:00:44]}  Kf5 {[%clk 0:00:12]} 33. Kd3 {[%clk 0:00:40]}  Rc8 {[%clk 0:00:04]} 34. e4+ {[%clk 0:00:39]}  Rxe4 {[%clk 0:00:04]} 35. Nxe6 {[%clk 0:00:39]}  Rxb4 {[%clk 0:00:02]} 36. Nxg7+ {[%clk 0:00:35]}  Kg6 {[%clk 0:00:02]} 37. Ne6 {[%clk 0:00:35]}  Rb3+ {[%clk 0:00:03]} 38. Ke4 {[%clk 0:00:35]}  Rc4+ {[%clk 0:00:01]} 39. Nd4 {[%clk 0:00:36]}  Rbb4 {[%clk 0:00:01]} 40. Rd1 {[%clk 0:00:34]}  Kf7 {[%clk 0:00:02]} 41. f5 {[%clk 0:00:32]}  Rc3 {[%clk 0:00:01]} 42. e6+ {[%clk 0:00:29]}  Ke8 {[%clk 0:00:02]} 43. d7+ {[%clk 0:00:27]}  Ke7 {[%clk 0:00:02]} 44. f6+ {[%clk 0:00:27]}  Kd8 {[%clk 0:00:02]} 45. f7 {[%clk 0:00:26]}  Ke7 {[%clk 0:00:01]} 46. f8=Q+ {[%clk 0:00:22]}  Kxf8 {[%clk 0:00:02]} 47. d8=Q+ {[%clk 0:00:23]}  Kg7 {[%clk 0:00:01]} 48. Qg5+ {[%clk 0:00:23]}  Kf8 {[%clk 0:00:02]} 49. Rf1+ {[%clk 0:00:22]}  Ke8 {[%clk 0:00:02]} 50. Rf7 {[%clk 0:00:17]}  Rcc4 {[%clk 0:00:01]} 51. Qg8# {[%clk 0:00:17]} 1-0


[Site "https://www.chess.com"]